bitfinex-derivatives/quotes_ETHF0:USTF0_20230402
["timestamp","ask_amount","ask_price","bid_price","bid_amount"]
[1680409222530,0.5765785,1818.7,1818.6,3.19332678]
[1680409223136,0.5765785,1818.7,1818.6,2.32984589]
[1680409223536,0.5765785,1818.7,1818.6,3.48224106]
[1680409224543,1.44188116,1818.8,1818.6,3.48224106]
[1680409224839,1.44188116,1818.8,1818.7,5.39598543]
[1680409225041,0.86530266,1818.8,1818.7,5.55467566]
[1680409225734,0.86530266,1818.8,1818.7,6.1301737]
[1680409225935,0.86530266,1818.8,1818.7,5.55467566]
[1680409226134,0.86530266,1818.8,1818.7,6.13018853]
[1680409226334,0.86530266,1818.8,1818.7,4.7670031]
[1680409228040,1.44153776,1818.8,1818.7,5.05467566]
[1680409228444,0.57623677,1818.8,1818.7,5.05467566]
[1680409228639,0.57623677,1818.8,1818.7,5.6299802]
[1680409229036,0.57623677,1818.8,1818.7,5.05467566]
[1680409229243,0.57623677,1818.8,1818.7,5.62996464]
[1680409229734,0.57623677,1818.8,1818.7,5.62997358]
[1680409230241,1.44153943,1818.8,1818.7,4.76678815]
[1680409230445,0.57623677,1818.8,1818.7,4.76678815]
[1680409234133,0.57623677,1818.8,1818.7,5.62997358]
[1680409234334,0.57623677,1818.8,1818.7,4.76678815]
[1680409241443,0.57623677,1818.8,1818.7,4.75927288]
[1680409245244,1.44130388,1818.8,1818.7,1.55898815]
[1680409245844,1.44130388,1818.8,1818.7,0.73398815]
[1680409246036,1.69030266,1818.8,1818.7,0.15869023]
[1680409246345,1.69030266,1818.8,1818.6,0.57529792]
[1680409246548,0.5760609,1818.7,1818.6,0.57529792]
[1680409249247,0.5760609,1818.7,1818.6,0.86318543]
[1680409249444,0.5760609,1818.7,1818.6,0.57537124]
[1680409249843,1.44136356,1818.7,1818.6,0.57537124]
[1680409250045,0.5760609,1818.7,1818.6,0.57537124]
[1680409250552,1.44136356,1818.7,1818.6,0.57537124]
[1680409250737,0.5760609,1818.7,1818.6,0.57537124]
[1680409250938,1.44136356,1818.7,1818.6,1.43855667]
[1680409251742,1.44136356,1818.7,1818.6,0.57537124]
[1680409252142,1.44136356,1818.7,1818.6,1.43855667]
[1680409252344,1.44152305,1818.7,1818.6,0.57537124]
[1680409252648,0.86530266,1818.7,1818.6,1.43855667]
[1680409253343,0.86530266,1818.7,1818.6,0.86318543]
[1680409253551,0.86530266,1818.7,1818.6,1.43878787]
[1680409254342,0.86530266,1818.7,1818.6,0.86318543]
[1680409255244,0.86530266,1818.7,1818.6,1.43885281]
[1680409255444,0.86530266,1818.7,1818.6,0.86318543]
[1680409255645,0.86530266,1818.7,1818.6,1.43882494]
[1680409255942,0.86530266,1818.7,1818.6,0.86318543]
[1680409256547,0.86530266,1818.7,1818.6,0.57574919]
[1680409257551,0.86530266,1818.7,1818.6,0.74154501]
[1680409259353,0.86530266,1818.7,1818.6,1.60473044]
[1680409259542,0.86530266,1818.7,1818.6,0.74154501]
[1680409260453,0.86530266,1818.7,1818.6,1.02898125]
[1680409261046,1.97877119,1818.8,1818.6,1.02898125]
[1680409261249,1.97877119,1818.8,1818.7,0.57585475]
[1680409262655,0.825,1818.8,1818.7,0.57585475]
[1680409262954,1.97837523,1818.8,1818.7,0.57585475]
[1680409263959,0.825,1818.8,1818.7,0.57585475]
[1680409264346,1.97837908,1818.8,1818.7,0.57585475]
[1680409264556,2.26722875,1818.8,1818.6,1.604836]
[1680409264758,1.15339671,1818.7,1818.6,1.60493443]
[1680409265053,1.15339671,1818.7,1818.6,1.60493289]
[1680409267255,2.47839671,1818.8,1818.6,1.02898125]
[1680409267462,2.47839671,1818.8,1818.7,0.57590679]
[1680409267664,1.325,1818.8,1818.6,1.60488804]
[1680409267961,1.97823998,1818.8,1818.6,1.60488804]
[1680409268463,1.97823998,1818.8,1818.7,0.57590679]
[1680409269062,1.97823998,1818.8,1818.6,1.60488804]
[1680409269264,1.97823998,1818.8,1818.6,1.604891]
[1680409269763,1.97823998,1818.8,1818.7,0.57590975]
[1680409270367,1.97823998,1818.8,1818.6,1.604891]
[1680409270561,1.97823998,1818.8,1818.7,0.57590975]
[1680409270763,2.47823998,1818.8,1818.7,0.57590975]
[1680409270960,3.44911229,1818.8,1818.6,0.74170557]
[1680409271162,1.15326013,1818.7,1818.6,0.74170557]
[1680409271357,1.14725392,1818.7,1818.6,0.74170557]
[1680409271665,4.5328,1818.7,1818.6,0.16579582]
[1680409271859,5.97502875,1818.7,1818.6,0.16579582]
[1680409272566,6.65694353,1818.7,1818.6,0.16579582]
[1680409273265,5.97502875,1818.7,1818.6,0.16579582]
[1680409273966,4.5328,1818.7,1818.6,0.16579582]
[1680409274173,5.97502875,1818.7,1818.6,0.16579582]
[1680409275671,4.5328,1818.7,1818.6,0.16579582]
[1680409275870,4.5328,1818.7,1818.5,0.57590975]
[1680409276177,0.825,1818.6,1818.4,1.43909518]
[1680409276370,0.86456917,1818.5,1818.4,1.43909518]
[1680409276875,0.86456917,1818.5,1818.4,1.43897869]
[1680409277077,1.68956917,1818.5,1818.4,0.57579326]
[1680409277470,2.26587193,1818.5,1818.4,1.43897869]
[1680409277671,1.40129419,1818.5,1818.4,0.86318543]
[1680409280581,1.40129419,1818.5,1818.4,1.43886008]
[1680409280773,1.40129419,1818.5,1818.4,0.86318543]
[1680409287584,1.40129419,1818.5,1818.4,0.99282508]
[1680409290786,2.26586336,1818.5,1818.4,0.99282508]
[1680409292885,4.0328,1818.5,1818.4,0.12963965]
[1680409293188,0.5,1818.4,1818.2,0.57614999]
[1680409293486,4.88925586,1818.3,1818.2,0.57614999]
[1680409295388,4.88925586,1818.3,1818.1,0.57614999]
[1680409295593,0.57612373,1818.2,1818.1,0.57614999]
[1680409296894,0.57612373,1818.2,1818.1,1.43933542]
[1680409297290,0.57612373,1818.2,1818.1,0.57614999]
[1680409297691,5.47337959,1818.3,1818.1,0.57614999]
[1680409297995,0.57612373,1818.2,1818.1,0.57614999]
[1680409299298,5.47337959,1818.3,1818.1,0.57614999]
[1680409301495,4.60892373,1818.3,1818.1,0.57614999]
[1680409302402,5.47337959,1818.3,1818.1,0.57614999]
[1680409302600,5.47337959,1818.3,1818.2,0.06667452]
[1680409302899,4.89725586,1818.3,1818.0,0.57614999]
[1680409303202,1.40090067,1818.1,1818.0,0.57614999]
[1680409303402,1.40090067,1818.1,1817.9,0.57614999]
[1680409303599,4.60870067,1818.1,1817.9,0.57614999]
[1680409305408,4.0328,1818.1,1817.9,0.57614999]
[1680409308605,4.60870067,1818.1,1817.9,0.57614999]
[1680409309303,4.0328,1818.1,1817.9,0.57614999]
[1680409313310,4.0328,1818.1,1817.8,2.26433542]
[1680409314606,4.60870067,1818.1,1817.8,1.40114999]
[1680409315006,4.60870067,1818.1,1817.8,2.26433542]
[1680409315915,4.60870067,1818.1,1817.8,1.40114999]
[1680409316812,4.60870067,1818.1,1817.8,2.26433542]
[1680409317215,4.60870067,1818.1,1817.8,1.40114999]
[1680409317414,4.60870067,1818.1,1817.8,2.26433542]
[1680409317617,4.60870067,1818.1,1817.9,0.06659333]
[1680409318116,1.40090067,1818.1,1817.9,0.06659333]
[1680409318318,4.60870067,1818.1,1817.9,0.06659333]
[1680409319214,4.0328,1818.1,1817.9,0.06659333]
[1680409320107,4.0328,1818.1,1817.9,0.64274332]
[1680409320310,4.0328,1818.1,1817.9,0.06659333]
[1680409320614,4.0328,1818.1,1817.9,0.64274332]
[1680409320815,4.0328,1818.1,1817.9,1.14274332]
[1680409321010,4.0328,1818.1,1817.9,0.64274332]
[1680409325214,3.2078,1818.1,1818.0,0.825]
[1680409326722,0.57590067,1818.2,1818.0,0.825]
[1680409329321,1.44035653,1818.2,1818.0,0.825]
[1680409331315,0.57590067,1818.1,1818.0,0.825]
[1680409332618,0.57590067,1818.1,1818.0,0.89151214]
[1680409333721,0.57590067,1818.1,1818.0,1.46766213]
[1680409335422,0.57590067,1818.1,1818.0,2.33084756]
[1680409335822,0.57590067,1818.1,1818.0,2.32787142]
[1680409337525,0.86445586,1818.1,1818.0,1.75172143]
[1680409343027,0.86445586,1818.1,1818.0,1.75377638]
[1680409344231,0.86445586,1818.1,1818.0,0.888536]
[1680409344830,0.86445586,1818.1,1818.0,1.75387532]
[1680409345033,0.86445586,1818.1,1818.0,0.888536]
[1680409345632,0.86445586,1818.1,1818.0,1.75401236]
[1680409345834,0.86445586,1818.1,1818.0,0.888536]
[1680409346439,0.86445586,1818.1,1818.0,1.75402904]
[1680409347128,0.86445586,1818.1,1818.0,1.75700518]
[1680409347327,1.15172859,1818.1,1818.0,0.89151214]
[1680409349332,1.15172859,1818.1,1818.0,1.75726718]
[1680409349930,1.15172859,1818.1,1818.0,1.75725959]
[1680409351135,1.15172859,1818.1,1818.0,0.89151214]
[1680409353041,1.15172859,1818.1,1818.0,1.75726281]
[1680409353245,1.15172859,1818.1,1818.0,0.89151214]
[1680409354342,1.15172859,1818.1,1818.0,1.7572514]
[1680409354938,1.97672859,1818.1,1818.0,0.9322514]
[1680409357047,1.15172859,1818.1,1818.0,0.9322514]
[1680409362747,1.15172859,1818.1,1818.0,1.50934108]
[1680409363856,1.15172859,1818.1,1818.0,0.64360182]
[1680409364045,5.47202875,1818.2,1818.0,0.64360182]
[1680409365055,1.15340879,1818.1,1818.0,0.64360182]
[1680409365345,1.65340879,1818.1,1818.0,0.64360182]
[1680409365551,1.15340879,1818.1,1818.0,0.64360182]
[1680409366154,5.47202875,1818.2,1818.0,0.64360182]
[1680409367342,1.15329544,1818.1,1818.0,0.64360182]
[1680409372650,1.15329544,1818.1,1818.0,1.50934108]
[1680409372956,1.15329544,1818.1,1818.0,0.64360182]
[1680409373157,1.15329544,1818.1,1818.0,1.50934108]
[1680409373553,1.15329544,1818.1,1818.0,0.64360182]
[1680409384061,2.76722875,1818.1,1818.0,0.06651214]
[1680409384257,3.44936845,1818.1,1817.9,0.57708968]
[1680409384463,4.86059662,1818.0,1817.9,0.57708968]
[1680409386358,3.7078,1818.0,1817.9,0.57708968]
[1680409386558,0.5,1817.9,1817.8,1.40208968]
[1680409386761,1.65253697,1817.9,1817.8,1.40208968]
[1680409386958,2.47753697,1817.9,1817.8,0.57708968]
[1680409387356,2.47753697,1817.9,1817.7,0.57708968]
[1680409387565,4.07188122,1817.8,1817.7,0.57708968]
[1680409387762,4.86033697,1817.8,1817.7,0.57708968]
[1680409388163,5.68533697,1817.8,1817.7,0.57708968]
[1680409388760,5.68533697,1817.8,1817.6,1.44282894]
[1680409389057,0.86403526,1817.7,1817.6,1.44255091]
[1680409389262,2.46953697,1817.7,1817.5,1.442554]
[1680409389563,4.5328,1817.6,1817.4,0.57681474]
[1680409389762,1.36333789,1817.5,1817.4,0.57681474]
[1680409389955,1.40458586,1817.5,1817.3,2.260554]
[1680409390159,3.78334926,1817.4,1817.3,2.260554]
[1680409390556,3.78334926,1817.4,1817.3,1.39481474]
[1680409391363,3.2078,1817.4,1817.3,1.39481474]
[1680409392668,3.78334926,1817.4,1817.3,0.818]
[1680409392965,3.86382739,1817.4,1817.3,0.818]
[1680409393364,3.28827813,1817.4,1817.3,0.818]
[1680409396971,3.28827813,1817.4,1817.2,0.818]
[1680409398466,1.40054926,1817.3,1816.8,1.40181474]
[1680409398671,4.0328,1816.9,1816.7,0.57681474]
[1680409398973,4.0328,1816.9,1816.5,2.767554]
[1680409399175,4.0328,1816.9,1816.6,0.57681474]
[1680409399369,4.0328,1816.9,1816.5,2.767554]
[1680409399568,4.0328,1816.9,1816.5,1.90181474]
[1680409399569,3.2078,1816.7,1816.5,1.90181474]
[1680409399765,0.825,1816.9,1816.5,1.90181474]
[1680409399766,4.0328,1816.9,1816.5,1.90181474]
[1680409399968,3.2078,1816.7,1816.5,1.325]
[1680409400468,3.2078,1816.7,1816.5,0.825]
[1680409401469,3.2078,1816.7,1816.1,1.40181474]
[1680409401470,0.824,1816.6,1816.1,1.40181474]
[1680409401670,4.0328,1816.4,1816.1,0.825]
[1680409401869,4.0328,1816.4,1816.1,1.325]
[1680409402266,3.2078,1816.2,1816.1,0.825]
[1680409402475,4.0328,1816.2,1815.9,1.323]
[1680409405881,3.2078,1816.0,1815.9,0.823]
[1680409406182,4.0328,1816.0,1815.7,1.32]
[1680409407075,0.26718282,1815.9,1815.7,1.318]
[1680409407481,0.26718282,1815.9,1815.7,1.601]
[1680409409784,0.26718282,1815.9,1815.8,1.099]
[1680409409979,4.3088,1816.2,1815.8,1.099]
[1680409410177,4.3088,1816.2,1815.9,0.5]
[1680409410381,0.26720397,1816.1,1815.9,0.5]
[1680409410683,4.3088,1816.2,1815.9,0.5]
[1680409411076,1.101,1816.4,1816.1,1.101]
[1680409412678,1.095453,1816.4,1816.1,1.101]
[1680409416992,1.101,1816.4,1816.0,1.101]
[1680409417289,1.601,1816.4,1816.0,1.101]
[1680409417486,1.101,1816.4,1816.0,1.101]
[1680409419288,3.2078,1816.3,1816.0,1.101]
[1680409420788,1.101,1816.4,1815.5,3.2078]
[1680409420789,4.3088,1816.1,1815.5,3.2078]
[1680409421091,1.097,1815.9,1815.6,0.5]
[1680409421387,1.097,1815.9,1815.7,0.5]
[1680409421787,0.26727803,1815.8,1815.7,0.5]
[1680409422090,1.101,1816.2,1815.7,4.8088]
[1680409422287,0.26728125,1815.8,1815.7,4.8088]
[1680409422488,1.101,1816.2,1815.7,4.8088]
[1680409422884,0.26728461,1816.1,1815.7,4.8088]
[1680409423090,1.101,1816.2,1815.7,4.8088]
[1680409423390,0.26728777,1816.0,1815.7,4.8088]
[1680409423591,1.101,1816.2,1815.7,4.8088]
[1680409424186,3.2078,1816.3,1816.0,1.101]
[1680409427098,4.3048,1816.3,1815.9,1.101]
[1680409428395,5.5,1816.7,1816.1,1.101]
[1680409428396,4.3088,1816.5,1816.1,1.101]
[1680409428791,3.2078,1816.3,1816.1,1.101]
[1680409428998,1.101,1816.5,1816.1,1.101]
[1680409428999,4.3088,1816.5,1816.1,1.101]
[1680409429296,3.2078,1816.3,1816.1,1.101]
[1680409429592,3.2078,1816.5,1816.2,1.601]
[1680409429793,3.2078,1816.7,1816.4,1.601]
[1680409429994,3.2078,1816.7,1816.5,1.101]
[1680409430189,1.1,1816.9,1816.5,1.101]
[1680409430190,4.3078,1816.9,1816.5,1.101]
[1680409437815,0.16947648,1816.8,1816.5,1.101]
[1680409443299,0.74382304,1816.8,1816.5,1.101]
[1680409444000,0.74382304,1816.8,1816.5,1.67781474]
[1680409444403,0.16947648,1816.8,1816.5,1.67781474]
[1680409447021,0.16947648,1816.8,1816.6,1.101]
[1680409447721,0.74382304,1816.8,1816.6,1.101]
[1680409447921,0.16947648,1816.8,1816.6,1.101]
[1680409452115,0.74382304,1816.8,1816.6,1.101]
[1680409452321,3.2078,1816.7,1816.6,1.101]
[1680409452915,3.38277552,1816.7,1816.6,1.101]
[1680409453316,0.17497552,1816.7,1816.6,1.101]
[1680409453519,4.64548445,1816.9,1816.6,1.101]
[1680409454424,0.57434656,1816.8,1816.6,1.101]
[1680409455223,4.64548445,1816.9,1816.6,1.101]
[1680409455425,0.57434656,1816.8,1816.6,1.101]
[1680409457025,0.57434656,1816.8,1816.5,1.67781474]
[1680409461734,0.57434656,1816.8,1816.5,1.67367357]
[1680409462336,3.78214656,1816.9,1816.7,1.101]
[1680409463038,4.64548445,1816.9,1816.7,1.101]
[1680409463532,3.78214656,1816.9,1816.7,1.101]
[1680409463732,4.64548445,1816.9,1816.7,1.101]
[1680409463928,3.78214656,1816.9,1816.7,1.101]
[1680409464332,4.64548445,1816.9,1816.7,1.101]
[1680409466035,3.78214656,1816.9,1816.7,1.101]
[1680409466238,4.64548445,1816.9,1816.7,1.101]
[1680409466435,0.57434656,1816.8,1816.7,1.101]
[1680409466635,0.57434656,1816.8,1816.6,1.101]
[1680409467533,1.43768445,1816.8,1816.6,1.101]
[1680409468035,0.17469151,1816.7,1816.6,1.101]
[1680409469442,0.74903807,1816.7,1816.6,1.101]
[1680409472453,0.74903807,1816.7,1816.6,0.825]
[1680409473340,1.0380294,1816.7,1816.6,0.825]
[1680409474742,2.15222848,1816.7,1816.5,0.86573926]
[1680409474941,1.15253697,1816.6,1816.4,0.825]
[1680409475147,4.36033697,1816.5,1816.4,0.825]
[1680409475344,4.65002875,1816.5,1816.4,0.825]
[1680409476340,4.35938479,1816.5,1816.4,0.825]
[1680409476949,4.35938479,1816.5,1816.3,0.825]
[1680409477146,0.86368941,1816.4,1816.3,0.825]
[1680409482356,1.43885604,1816.4,1816.3,0.825]
[1680409482543,0.86368941,1816.4,1816.3,0.825]
[1680409483046,1.07278758,1816.4,1816.3,0.825]
[1680409483354,1.64792972,1816.4,1816.3,0.825]
[1680409484253,0.78424031,1816.4,1816.3,0.825]
[1680409508267,1.64792972,1816.4,1816.3,0.825]
[1680409510260,1.07278758,1816.4,1816.3,0.825]
[1680409518272,1.36068296,1816.4,1816.3,0.825]
[1680409520371,1.36068296,1816.4,1816.3,1.69073926]
[1680409522477,0.20909817,1816.4,1816.3,1.69073926]
[1680409522677,1.36224293,1816.4,1816.3,1.69073926]
[1680409522882,0.20909817,1816.4,1816.3,1.69073926]
[1680409523377,1.36228973,1816.4,1816.3,1.69073926]
[1680409528694,0.20909817,1816.4,1816.3,2.80039517]
[1680409528896,0.20909817,1816.4,1816.3,3.30039517]
[1680409529892,1.0738339,1816.4,1816.3,3.30039517]
[1680409530288,0.20909817,1816.4,1816.3,1.648]
[1680409530691,1.07382076,1816.4,1816.3,2.80039517]
[1680409531086,0.20909817,1816.4,1816.3,1.648]
[1680409531688,1.07381914,1816.4,1816.3,2.80039517]
[1680409535995,0.20909817,1816.4,1816.3,2.50984213]
[1680409536191,1.36228973,1816.4,1816.3,2.50984213]
[1680409536999,1.36228973,1816.4,1816.3,1.68684213]
[1680409537198,1.07365723,1816.4,1816.3,1.68684213]
[1680409537698,0.20909817,1816.4,1816.3,1.68684213]
[1680409538302,1.07366442,1816.4,1816.3,1.68684213]
[1680409538699,0.20909817,1816.4,1816.3,1.68684213]
[1680409540105,1.07364948,1816.4,1816.3,1.68684213]
[1680409540498,0.20909817,1816.4,1816.3,1.68684213]
[1680409540905,1.07363505,1816.4,1816.3,1.68684213]
[1680409541103,0.20909817,1816.4,1816.3,1.68684213]
[1680409543108,1.36228973,1816.4,1816.3,0.82053038]
[1680409543600,1.36228973,1816.4,1816.3,1.68684213]
[1680409543807,1.36228973,1816.4,1816.3,0.82053038]
[1680409544705,1.36228973,1816.4,1816.3,1.68684213]
[1680409545407,1.36228973,1816.4,1816.2,1.69131175]
[1680409545707,1.36451035,1816.3,1816.2,1.69131175]
[1680409545901,0.86451035,1816.3,1816.2,1.69131175]
[1680409546103,1.09067761,1816.3,1816.2,1.69131175]
[1680409557018,0.22616726,1816.3,1816.2,1.69131175]
[1680409558118,1.37935882,1816.3,1816.2,1.69131175]
[1680409558325,4.58715882,1816.3,1816.2,1.69131175]
[1680409560824,4.58715882,1816.3,1816.2,0.825]
[1680409561419,4.58715882,1816.3,1816.2,1.69131175]
[1680409561923,4.58715882,1816.3,1816.2,0.825]
[1680409563121,4.58715882,1816.3,1816.2,1.69131175]
[1680409563324,4.58715882,1816.3,1816.2,0.825]
[1680409564224,4.58715882,1816.3,1816.2,1.69131175]
[1680409564416,4.58715882,1816.3,1816.2,0.825]
[1680409567025,4.58715882,1816.3,1816.1,1.68931175]
[1680409567225,0.86465014,1816.2,1816.1,1.68931175]
[1680409567627,1.08953423,1816.2,1816.1,1.68931175]
[1680409567821,1.58953423,1816.2,1816.1,1.68931175]
[1680409568022,1.08953423,1816.2,1816.1,1.68931175]
[1680409572324,1.08953423,1816.2,1816.1,0.823]
[1680409574132,1.66580893,1816.2,1816.1,1.68931175]
[1680409574328,1.08953423,1816.2,1816.1,1.68931175]
[1680409576430,1.66585089,1816.2,1816.1,1.68931175]
[1680409577024,1.66585089,1816.2,1816.1,2.50931175]
[1680409578035,1.08953423,1816.2,1816.1,2.50931175]
[1680409582736,1.08953423,1816.2,1816.1,1.643]
[1680409586342,1.08953423,1816.2,1816.1,2.79539517]
[1680409599858,1.08953423,1816.2,1816.1,3.76819796]
[1680409600263,1.00957766,1816.2,1816.1,3.76819796]
[1680409600463,1.58635636,1816.2,1816.1,3.76819796]
[1680409600670,0.72170622,1816.2,1816.1,2.61580279]
[1680409601565,1.58635636,1816.2,1816.1,3.77115101]
[1680409601764,1.58635636,1816.2,1816.1,2.61580279]
[1680409601965,0.72170622,1816.2,1816.1,2.61580279]
[1680409602263,0.72170622,1816.2,1816.1,3.77110903]
[1680409610369,0.72170622,1816.2,1816.1,3.27110903]
[1680409614370,0.72170622,1816.2,1816.1,3.77110903]
[1680409614670,0.72170622,1816.2,1816.1,4.8786142]
[1680409614870,0.72170622,1816.2,1816.1,10.77813324]
[1680409615668,0.72170622,1816.2,1816.1,9.34032183]
[1680409616068,0.72170622,1816.2,1816.1,10.77813324]
[1680409620375,0.72170622,1816.2,1816.1,9.34032183]
[1680409620575,0.72170622,1816.2,1816.1,10.77813324]
[1680409620876,0.72170622,1816.2,1816.1,9.34032183]
[1680409621175,0.72170622,1816.2,1816.1,10.77813324]
[1680409623377,1.15319156,1816.5,1816.2,0.5]
[1680409623577,1.15319156,1816.5,1816.4,1.40253013]
[1680409624579,2.62495378,1816.5,1816.4,0.825]
[1680409624778,5.83275378,1816.5,1816.4,0.825]
[1680409625278,5.15002875,1816.5,1816.4,1.40253013]
[1680409626165,5.83275478,1816.5,1816.4,0.825]
[1680409626372,5.15002875,1816.5,1816.4,1.40253013]
[1680409626574,5.83275632,1816.5,1816.4,1.40253013]
[1680409627276,5.33275632,1816.5,1816.4,1.40253013]
[1680409630381,6.01548735,1816.5,1816.4,0.825]
[1680409630584,5.33275632,1816.5,1816.4,1.40253013]
[1680409630770,5.45814105,1816.5,1816.4,1.40253013]
[1680409631170,6.14088212,1816.5,1816.4,0.825]
[1680409641691,6.17473421,1816.5,1816.4,0.81500789]
[1680409641885,6.17473421,1816.5,1816.4,0.80509405]
[1680409642189,6.17473421,1816.5,1816.4,0.79525787]
[1680409642388,2.96693421,1816.5,1816.4,1.36225125]
[1680409643390,6.17473421,1816.5,1816.4,1.36225125]
[1680409643590,2.28419314,1816.5,1816.4,1.36225125]
[1680409647093,2.96690457,1816.5,1816.4,1.36225125]
[1680409647490,2.96690638,1816.5,1816.4,1.36225125]
[1680409647690,2.28419314,1816.5,1816.4,1.36225125]
[1680409648092,2.96690583,1816.5,1816.4,1.36225125]
[1680409648594,2.28419314,1816.5,1816.4,1.36225125]
[1680409648894,2.96690592,1816.5,1816.4,1.36225125]
[1680409649298,2.28419314,1816.5,1816.4,1.36225125]
[1680409649487,2.96690803,1816.5,1816.4,1.36225125]
[1680409649802,2.96691154,1816.5,1816.4,1.35257179]
[1680409650096,6.17471154,1816.5,1816.4,1.3431212]
[1680409650293,6.17471154,1816.5,1816.4,1.33203495]
[1680409650497,2.96691154,1816.5,1816.4,1.3228179]
[1680409650699,2.96691154,1816.5,1816.4,1.31299932]
[1680409650890,5.49199314,1816.5,1816.4,1.31299932]
[1680409651204,6.1747073,1816.5,1816.4,1.31299932]
[1680409651694,2.28419314,1816.5,1816.4,1.31299932]
[1680409652797,2.96690614,1816.5,1816.4,1.31299932]
[1680409653699,2.28419314,1816.5,1816.4,1.31299932]
[1680409654799,2.96690788,1816.5,1816.4,1.31299932]
[1680409655998,2.96690788,1816.5,1816.4,1.30422209]
[1680409656199,2.28419314,1816.5,1816.4,1.30422209]
[1680409656392,2.96691138,1816.5,1816.4,1.30422209]
[1680409657801,2.28419314,1816.5,1816.4,1.30422209]
[1680409658008,0.84196439,1816.5,1816.4,1.30422209]
[1680409659101,2.28419314,1816.5,1816.4,1.30422209]
[1680409664214,0.84196439,1816.5,1816.4,1.30422209]
[1680409665803,0.84196439,1816.5,1816.4,1.40253013]
[1680409666010,1.99552523,1816.5,1816.4,2.26882532]
[1680409668817,1.99552523,1816.5,1816.4,1.40253013]
[1680409681229,0.84196439,1816.5,1816.4,1.40253013]
[1680409683332,2.28419314,1816.5,1816.4,1.40253013]
[1680409694935,2.96690672,1816.5,1816.4,1.40253013]
[1680409695139,2.28419314,1816.5,1816.4,1.40253013]
[1680409695339,2.9669112,1816.5,1816.4,1.40253013]
[1680409697031,2.9669112,1816.5,1816.4,0.57753013]
[1680409702840,0.84196439,1816.5,1816.4,1.69129519]
[1680409703040,0.84196439,1816.5,1816.4,2.19129519]
[1680409705048,0.84196439,1816.5,1816.4,1.69129519]
[1680409709948,1.99622954,1816.5,1816.4,1.69129519]
[1680409710250,0.84196439,1816.5,1816.4,1.69129519]
[1680409711544,1.99621737,1816.5,1816.4,1.69129519]
[1680409723852,0.84196439,1816.5,1816.4,1.69129519]
[1680409724057,2.28419314,1816.5,1816.4,1.40270065]
[1680409726653,0.84196439,1816.5,1816.4,2.26899584]
[1680409726855,2.28419314,1816.5,1816.4,1.40270065]
[1680409727449,0.84196439,1816.5,1816.4,2.26899584]
[1680409727654,2.28419314,1816.5,1816.4,2.26899584]
[1680409727854,2.28419314,1816.5,1816.4,1.40270065]
[1680409728858,0.84196439,1816.5,1816.4,2.26899584]
[1680409729058,2.28419314,1816.5,1816.4,1.40270065]
[1680409729258,1.60146557,1816.5,1816.4,1.40270065]
[1680409729561,0.15923682,1816.5,1816.4,1.40270065]
[1680409729763,1.60146557,1816.5,1816.4,1.40270065]
[1680409730965,0.15923682,1816.5,1816.4,2.26899584]
[1680409731166,1.60146557,1816.5,1816.4,1.40270065]
[1680409732158,1.60146557,1816.5,1816.4,2.26899584]
[1680409732461,1.60146557,1816.5,1816.4,1.40270065]
[1680409738569,0.15923682,1816.5,1816.4,2.26899584]
[1680409738775,1.60146557,1816.5,1816.4,1.40270065]
[1680409739175,0.15923682,1816.5,1816.4,2.26899584]
[1680409739375,1.60146557,1816.5,1816.4,2.26899584]
[1680409740180,0.15923682,1816.5,1816.4,1.69129519]
[1680409740480,1.60146557,1816.5,1816.4,1.40271756]
[1680409741774,2.28417703,1816.5,1816.4,1.40271756]
[1680409742272,1.60146557,1816.5,1816.4,1.40271756]
[1680409748186,1.60146557,1816.5,1816.4,2.26901275]
[1680409749387,1.60146557,1816.5,1816.4,1.40271756]
[1680409751687,1.60146557,1816.5,1816.4,2.26907165]
[1680409752488,1.60146557,1816.5,1816.4,1.40277646]
[1680409753295,1.60146557,1816.5,1816.4,2.26907165]
[1680409753488,1.60146557,1816.5,1816.4,1.40277646]
[1680409753793,1.60146557,1816.5,1816.4,2.26907165]
[1680409754791,1.60146557,1816.5,1816.4,1.40277646]
[1680409755190,1.60146557,1816.5,1816.4,2.26907165]
[1680409756299,1.60146557,1816.5,1816.4,1.69129519]
[1680409756595,2.28416517,1816.5,1816.4,1.40278228]
[1680409757293,2.28417549,1816.5,1816.4,1.40278228]
[1680409757490,1.60146557,1816.5,1816.4,1.40278228]
[1680409757689,2.28417607,1816.5,1816.4,1.40278228]
[1680409759301,1.60146557,1816.5,1816.4,1.40278228]
[1680409759603,2.2841835,1816.5,1816.4,1.40278228]
[1680409765801,5.4919835,1816.5,1816.4,1.40278228]
[1680409767000,5.4919835,1816.5,1816.4,0.57778228]
[1680409780319,0.00389814,1816.4,1816.3,1.40278228]
[1680409780519,2.6298345,1816.4,1816.3,1.40278228]
[1680409780714,2.29504064,1816.4,1816.3,1.40278228]
[1680409784020,1.61232271,1816.4,1816.3,1.40278228]
[1680409785321,1.61232271,1816.4,1816.3,1.3950171]
[1680409786921,1.61232271,1816.4,1816.3,0.57778228]
[1680409788025,1.61232271,1816.4,1816.2,2.26707747]
[1680409788225,4.36179638,1816.3,1816.2,1.68929519]
[1680409789228,4.36179638,1816.3,1816.2,2.26680367]
[1680409791623,4.53502921,1816.3,1816.2,1.40050848]
[1680409796926,1.32722921,1816.3,1816.2,2.26680367]
[1680409797329,4.53502921,1816.3,1816.2,2.26680367]
[1680409797534,4.53502921,1816.3,1816.2,1.40050848]
[1680409815246,4.53502921,1816.3,1815.9,6.32481141]
[1680409815247,0.5,1816.2,1815.9,6.32481141]
[1680409815447,0.86537814,1816.0,1815.9,1.325]
[1680409815646,0.86537814,1816.0,1815.9,0.825]
[1680409815852,0.57687936,1816.0,1815.9,0.825]
[1680409816051,0.57687936,1816.0,1815.9,1.75740839]
[1680409816348,0.75050443,1816.1,1815.9,4.0202198]
[1680409816554,0.75050443,1816.1,1816.0,5.78520839]
[1680409816855,0.75050443,1816.1,1816.0,7.2230198]
[1680409817550,0.75050443,1816.1,1816.0,2.57740839]
[1680409819852,1.61588257,1816.1,1816.0,2.57740839]
[1680409822156,1.03900321,1816.1,1816.0,2.57740839]
[1680409823458,1.61612606,1816.1,1816.0,2.57740839]
[1680409823658,1.03900321,1816.1,1816.0,2.57740839]
[1680409826958,1.03900321,1816.1,1816.0,1.75240839]
[1680409827355,1.03900321,1816.1,1816.0,1.25240839]
[1680409829356,1.03900321,1816.1,1816.0,0.82]
[1680409832365,1.03933303,1816.1,1816.0,0.82]
[1680409845279,1.03933303,1816.1,1816.0,1.97538473]
[1680409851682,1.03933303,1816.1,1816.0,2.40802556]
[1680409851983,1.03933303,1816.1,1816.0,1.97538473]